bitfinex/quotes_SOLUSD_20240607
["timestamp","ask_amount","ask_price","bid_price","bid_amount"]
[1717763709692,0.40463884,170.6,170.53,120.0]
[1717763709897,0.40463884,170.6,170.54,17.98220654]
[1717763710095,0.40463884,170.6,170.56,17.59]
[1717763710401,0.40463884,170.6,170.57,138.87300916]
[1717763710606,0.40463884,170.6,170.58,1.28308778]
[1717763710803,0.40463884,170.6,170.59,120.0]
[1717763710979,0.40463884,170.6,170.59,137.59]
[1717763711498,0.40463884,170.6,170.53,120.0]
[1717763711698,0.40463884,170.6,170.54,1.11554236]
[1717763711902,0.40463884,170.6,170.51,120.0]
[1717763712108,5.82939999,170.57,170.51,120.0]
[1717763712293,5.82939999,170.58,170.51,120.0]
[1717763712498,5.82939999,170.58,170.53,137.59]
[1717763712685,0.40463884,170.6,170.53,137.59]
[1717763712893,0.40463884,170.6,170.55,137.59]
[1717763713503,0.40463884,170.6,170.53,17.59]
[1717763713704,0.40463884,170.6,170.54,137.59]
[1717763714090,0.40463884,170.6,170.54,17.59]
[1717763714293,6.23403883,170.6,170.52,120.0]
[1717763714617,6.23403883,170.6,170.56,137.59]
[1717763714618,0.33536274,170.6,170.56,137.59]
[1717763714995,0.33536274,170.6,170.56,17.59]
[1717763715193,0.33536274,170.6,170.56,18.17629438]
[1717763715393,0.33536274,170.6,170.57,137.59]
[1717763715616,0.33536274,170.6,170.59,17.59]
[1717763718023,0.33536274,170.6,170.57,120.0]
[1717763718323,0.33536274,170.6,170.55,155.24]
[1717763718914,0.33536274,170.6,170.56,17.59]
[1717763719103,0.33536274,170.6,170.55,120.0]
[1717763719520,0.33536274,170.6,170.57,120.0]
[1717763719829,0.33536274,170.6,170.56,17.59]
[1717763720121,0.33536274,170.6,170.58,137.59]
[1717763720323,0.33536274,170.6,170.56,120.0]
[1717763720522,0.33536274,170.6,170.55,120.0]
[1717763720821,1.35025669,170.59,170.55,120.0]
[1717763721008,7.17965668,170.59,170.53,120.0]
[1717763721209,5.82939999,170.55,170.48,4.17060001]
[1717763721409,5.82939999,170.55,170.47,120.0]
[1717763721608,5.82939999,170.55,170.44,120.0]
[1717763721812,1.35025669,170.59,170.4,6.4887]
[1717763721813,5.82939999,170.51,170.47,137.59]
[1717763722019,5.82939999,170.58,170.47,17.59]
[1717763722428,5.82939999,170.56,170.47,137.59]
[1717763722603,5.82939999,170.58,170.47,17.59]
[1717763722798,5.82939999,170.58,170.47,137.59]
[1717763723305,5.82939999,170.58,170.48,0.34114139]
[1717763723500,5.82939999,170.57,170.44,17.59]
[1717763723724,5.82939999,170.5,170.44,17.59]
[1717763723907,5.82939999,170.48,170.43,120.0]
[1717763724109,5.82939999,170.46,170.43,120.0]
[1717763724927,6.0943,170.55,170.43,120.0]
[1717763724928,5.82939999,170.51,170.43,120.0]
[1717763725135,5.82939999,170.51,170.46,120.0]
[1717763725304,5.82939999,170.53,170.46,120.0]
[1717763725506,5.82939999,170.53,170.47,17.59]
[1717763725711,5.82939999,170.56,170.5,120.0]
[1717763725914,7.17965668,170.59,170.47,17.59]
[1717763726107,7.17965668,170.59,170.5,120.0]
[1717763726307,5.82939999,170.54,170.5,120.0]
[1717763726635,7.17965668,170.59,170.52,120.0]
[1717763727210,5.82939999,170.56,170.52,120.0]
[1717763727413,1.35025669,170.59,170.52,120.0]
[1717763727625,1.35025669,170.59,170.54,120.0]
[1717763728150,5.82939999,170.55,170.48,17.59]
[1717763728643,1.35025669,170.59,170.48,17.59]
[1717763728644,5.82939999,170.57,170.48,17.59]
[1717763728807,5.82939999,170.53,170.51,120.0]
[1717763729008,5.82939999,170.55,170.5,120.0]
[1717763729304,5.82939999,170.53,170.5,120.0]
[1717763729607,5.82939999,170.53,170.43,17.59]
[1717763729808,5.82939999,170.51,170.44,120.0]
[1717763730125,5.82939999,170.55,170.41,155.24]
[1717763730354,5.82939999,170.48,170.41,120.0]
[1717763730665,5.82939999,170.46,170.38,120.0]
[1717763731007,5.82939999,170.44,170.37,120.0]
[1717763731411,10.33536274,170.57,170.34,51.49960001]
[1717763731412,5.82939999,170.46,170.41,120.0]
[1717763731659,5.82939999,170.46,170.43,120.0]
[1717763731817,5.82939999,170.46,170.34,51.49960001]
[1717763731818,5.82939999,170.46,170.38,120.0]
[1717763732136,5.82939999,170.42,170.35,120.0]
[1717763732432,5.82939999,170.4,170.32,120.0]
[1717763732633,5.82939999,170.4,170.3,120.0]
[1717763732815,5.82939999,170.4,170.28,6.4844]
[1717763732816,5.82939999,170.4,170.31,120.0]
[1717763733017,5.82939999,170.36,170.33,120.0]
[1717763733212,5.82939999,170.36,170.31,120.0]
[1717763733734,5.82939999,170.36,170.31,137.59]
[1717763733925,5.82939999,170.36,170.31,120.0]
[1717763734110,5.82939999,170.36,170.33,120.0]
[1717763734311,5.82939999,170.36,170.31,120.0]
[1717763734713,5.82939999,170.36,170.31,137.59]
[1717763734915,5.82939999,170.36,170.31,120.0]
[1717763735523,31.4421,170.49,170.37,120.0]
[1717763735524,5.82939999,170.4,170.37,120.0]
[1717763735717,5.82939999,170.4,170.33,120.0]
[1717763735939,5.82939999,170.35,170.27,120.0]
[1717763736419,5.82939999,170.33,170.25,120.0]
[1717763736615,5.82939999,170.33,170.23,128.80077941]
[1717763736921,5.82939999,170.29,170.22,120.0]
[1717763737116,5.82939999,170.31,170.22,137.59]
[1717763737419,5.82939999,170.29,170.22,137.59]
[1717763737941,5.82939999,170.35,170.27,137.59]
[1717763738244,5.82939999,170.35,170.27,120.0]
[1717763738415,5.82939999,170.35,170.2,4.17060001]
[1717763738711,5.82939999,170.35,170.25,120.0]
[1717763739112,5.82939999,170.33,170.25,120.0]
[1717763739737,5.82939999,170.33,170.27,120.0]
[1717763740130,5.82939999,170.33,170.29,120.0]
[1717763740317,5.82939999,170.35,170.31,120.0]
[1717763740929,5.82939999,170.35,170.31,137.59]
[1717763741225,5.82939999,170.35,170.31,17.59]
[1717763741527,5.82939999,170.35,170.27,137.59]
[1717763741744,5.82939999,170.35,170.3,120.0]
[1717763742274,5.82939999,170.35,170.32,120.0]
[1717763742468,5.82939999,170.35,170.31,120.0]
[1717763742965,5.82939999,170.35,170.29,137.59]
[1717763743149,5.82939999,170.33,170.25,120.0]
[1717763743477,6.5395,170.44,170.23,120.0]
[1717763743478,5.82939999,170.3,170.23,120.0]
[1717763743766,5.82939999,170.27,170.23,120.0]
[1717763744069,5.82939999,170.27,170.23,137.59]
[1717763744239,5.82939999,170.27,170.25,120.0]
[1717763744445,5.82939999,170.33,170.25,137.59]
[1717763744863,5.82939999,170.33,170.15,8.80077941]
[1717763744864,5.82939999,170.33,170.27,17.59]
[1717763746594,5.82939999,170.33,170.23,35.24]
[1717763746759,5.82939999,170.33,170.28,120.0]
[1717763747274,5.82939999,170.38,170.28,120.0]
[1717763747471,5.82939999,170.38,170.26,120.0]
[1717763747693,5.82939999,170.25,170.17,26.39077941]
[1717763747893,21.2587,170.33,170.14,120.5020564]
[1717763747894,5.82939999,170.23,170.14,120.5020564]
[1717763748359,5.82939999,170.21,170.14,120.5020564]
[1717763748766,5.82939999,170.19,170.14,0.5020564]
[1717763748965,5.82939999,170.19,170.14,120.5020564]
[1717763749262,5.82939999,170.19,170.14,138.0920564]
[1717763749591,5.82939999,170.21,170.14,138.0920564]
[1717763749758,5.82939999,170.24,170.15,17.59]
[1717763749961,2.1726,170.3,170.14,120.5020564]
[1717763749962,5.82939999,170.22,170.14,120.5020564]
[1717763750488,5.82939999,170.22,170.16,120.0]
[1717763750777,5.82939999,170.25,170.19,17.59]
[1717763751175,5.82939999,170.25,170.2,120.36315237]
[1717763751375,5.82939999,170.25,170.19,17.59]
[1717763751566,5.82939999,170.23,170.17,120.0]
[1717763751764,5.82939999,170.23,170.15,120.0]
[1717763752269,5.82939999,170.21,170.14,0.5020564]
[1717763752467,5.82939999,170.19,170.14,0.5020564]
[1717763752982,5.82939999,170.17,170.14,0.5020564]
[1717763753492,5.82939999,170.15,170.14,0.5020564]
[1717763753669,26.96399999,170.15,170.14,0.5020564]
[1717763759660,5.82939999,170.08,169.97,0.8008647]
[1717763759888,5.82939999,170.03,169.98,120.0]
[1717763760062,5.82939999,170.05,169.98,120.0]
[1717763760266,5.82939999,170.05,170.0,120.0]
[1717763760476,5.82939999,170.05,169.98,120.0]
[1717763760682,5.82939999,170.05,169.98,137.59]
[1717763760882,5.82939999,170.03,169.98,120.0]
[1717763761210,5.82939999,170.01,169.97,0.8008647]
[1717763761502,5.82939999,170.06,169.98,120.0]
[1717763761704,5.82939999,170.04,169.98,137.59]
[1717763762217,5.82939999,170.08,170.04,120.0]
[1717763762377,5.82939999,170.08,170.02,120.0]
[1717763762884,5.82939999,170.08,170.04,120.0]
[1717763763100,5.82939999,170.08,170.06,137.59]
[1717763763287,5.82939999,170.15,170.1,120.0]
[1717763763593,5.82939999,170.15,170.12,120.0]
[1717763763789,5.82939999,170.15,170.13,1.17397722]
[1717763763992,5.82939999,170.15,170.06,35.24]
[1717763763993,5.82939999,170.15,170.08,120.0]
[1717763764197,5.82939999,170.15,170.08,137.59]
[1717763764390,5.82939999,170.15,170.05,15.0644]
[1717763764602,5.82939999,170.15,170.08,120.0]
[1717763764918,5.82939999,170.15,170.1,120.0]
[1717763765095,5.82939999,170.15,170.12,137.59]
[1717763765605,5.82939999,170.15,170.14,120.0]
[1717763765808,5.82939999,170.18,170.14,120.0]
[1717763766518,5.82939999,170.18,170.16,120.0]
[1717763766898,6.0374,170.26,170.16,120.0]
[1717763766899,5.82939999,170.22,170.16,120.0]
[1717763767082,5.82939999,170.24,170.18,120.0]
[1717763767614,5.82939999,170.24,170.2,120.0]
[1717763767993,5.82939999,170.24,170.18,137.59]
[1717763768194,5.82939999,170.2,170.15,120.0]
[1717763768410,5.82939999,170.17,170.13,120.0]
[1717763768887,5.82939999,170.21,170.13,120.0]
[1717763769088,8.21,170.31,170.18,120.0]
[1717763769089,5.82939999,170.25,170.18,120.0]
[1717763769490,5.82939999,170.25,170.2,120.0]
[1717763769711,5.82939999,170.25,170.21,1.17423557]
[1717763769895,5.82939999,170.25,170.22,120.0]
[1717763770220,5.82939999,170.28,170.22,137.59]
[1717763770387,5.82939999,170.28,170.2,120.0]
[1717763770591,5.82939999,170.27,170.16,120.0]
[1717763770789,5.82939999,170.27,170.19,120.0]
[1717763771008,4.3441,170.35,170.15,6.2718]
[1717763771009,5.82939999,170.21,170.17,120.0]
[1717763771209,5.82939999,170.28,170.2,137.59]
[1717763771414,5.82939999,170.28,170.22,120.0]
[1717763771641,5.82939999,170.28,170.24,120.0]
[1717763771806,5.82939999,170.28,170.22,120.0]
[1717763771992,5.82939999,170.28,170.2,120.0]
[1717763772186,5.82939999,170.26,170.2,120.0]
[1717763772687,5.82939999,170.24,170.2,120.0]
[1717763772887,5.82939999,170.28,170.24,120.0]
[1717763773292,5.82939999,170.28,170.26,120.0]
[1717763773712,5.82939999,170.3,170.24,137.59]
[1717763774013,5.82939999,170.26,170.2,120.0]
[1717763774197,5.82939999,170.27,170.2,120.0]
[1717763774394,5.82939999,170.24,170.21,0.71769408]
[1717763774614,5.82939999,170.21,170.16,128.81504411]
[1717763774816,5.82939999,170.21,170.16,120.0]
[1717763774995,5.82939999,170.23,170.16,120.0]
[1717763775315,16.8964,170.37,170.15,6.2718]
[1717763775316,5.82939999,170.21,170.18,120.0]
[1717763775514,5.82939999,170.21,170.16,120.0]
[1717763775820,5.82939999,170.18,170.14,128.81504411]
[1717763776121,5.82939999,170.22,170.14,128.81504411]
[1717763776417,5.82939999,170.21,170.17,17.59]
[1717763776593,5.82939999,170.24,170.17,17.59]
[1717763776795,5.82939999,170.24,170.19,120.0]
[1717763777104,5.82939999,170.26,170.21,120.0]
[1717763777310,5.82939999,170.33,170.23,120.0]
[1717763777509,5.82939999,170.33,170.21,137.59]
[1717763777804,5.82939999,170.3,170.22,1.55992066]
[1717763778008,5.82939999,170.3,170.2,8.81504411]
[1717763778201,5.82939999,170.3,170.21,120.0]
[1717763778404,5.82939999,170.32,170.21,137.59]
[1717763778701,5.82939999,170.32,170.23,120.0]
[1717763779023,5.82939999,170.32,170.25,137.59]
[1717763779223,5.82939999,170.32,170.23,120.0]
[1717763779413,6.0374,170.36,170.23,120.0]
[1717763779414,5.82939999,170.34,170.23,120.0]
[1717763779623,5.82939999,170.34,170.23,137.59]
[1717763780128,5.82939999,170.32,170.23,17.59]
[1717763780620,5.82939999,170.29,170.24,120.0]
[1717763780805,5.82939999,170.31,170.26,120.0]
[1717763781013,5.82939999,170.33,170.26,137.59]
[1717763781217,5.82939999,170.31,170.28,120.0]
[1717763781515,5.82939999,170.35,170.3,120.0]
[1717763781718,5.82939999,170.35,170.28,137.59]
[1717763782322,5.82939999,170.28,170.22,8.81504411]
[1717763782618,5.82939999,170.23,170.22,8.81504411]
[1717763782825,5.82939999,170.23,170.19,8.81504411]
[1717763783026,11.86679999,170.23,170.19,8.81504411]
[1717763783318,5.82939999,170.17,170.15,8.81504411]
[1717763783706,6.0374,170.23,170.14,8.81504411]
[1717763783707,5.82939999,170.22,170.14,8.81504411]
[1717763783908,5.82939999,170.24,170.17,120.0]
[1717763784116,5.82939999,170.22,170.21,120.0]
[1717763784427,5.82939999,170.24,170.17,120.0]
[1717763784606,5.82939999,170.21,170.16,8.81504411]
[1717763784801,5.82939999,170.19,170.15,8.81627273]
[1717763785027,5.82939999,170.24,170.18,120.0]
[1717763785515,5.82939999,170.24,170.18,137.59]
[1717763785712,5.82939999,170.24,170.22,120.0]
[1717763785904,6.0374,170.21,170.17,8.81627273]
[1717763786106,5.82939999,170.18,170.17,8.81627273]
[1717763786302,5.82939999,170.18,170.14,8.81627273]
[1717763786508,5.82939999,170.16,170.14,8.81627273]
[1717763787013,5.82939999,170.14,170.13,8.81627273]
[1717763787207,5.82939999,170.16,170.11,120.0]
[1717763787412,5.82939999,170.2,170.11,120.0]
[1717763787608,5.82939999,170.15,170.1,8.81627273]
[1717763787814,5.82939999,170.13,170.1,8.81627273]
[1717763788014,5.82939999,170.19,170.09,128.81627273]
[1717763788326,5.82939999,170.19,170.12,120.0]
[1717763789025,5.82939999,170.21,170.14,120.0]
[1717763789235,5.82939999,170.21,170.13,8.81627273]
[1717763789528,5.82939999,170.21,170.14,8.81627273]
[1717763789730,5.82939999,170.21,170.14,120.0]
[1717763789931,5.82939999,170.19,170.13,8.81627273]
[1717763790229,5.82939999,170.15,170.12,8.81627273]
[1717763790600,5.82939999,170.15,170.11,8.81627273]
[1717763791027,5.82939999,170.12,170.11,8.81627273]
[1717763791438,5.82939999,170.12,170.1,8.81627273]
[1717763791955,5.82939999,170.14,170.1,8.81627273]
[1717763792249,5.82939999,170.12,170.11,8.81627273]
[1717763792546,5.82939999,170.17,170.11,8.81627273]
[1717763792708,5.82939999,170.21,170.12,120.0]
[1717763792902,5.82939999,170.21,170.14,120.0]
[1717763793116,5.82939999,170.23,170.14,120.0]
[1717763793333,5.82939999,170.23,170.15,8.81627273]
[1717763793928,5.82939999,170.23,170.16,120.0]
[1717763794318,5.82939999,170.23,170.16,8.81627273]
[1717763794615,6.0374,170.27,170.16,8.81627273]
[1717763794616,5.82939999,170.21,170.16,8.81627273]
[1717763794817,5.82939999,170.18,170.15,8.81627273]
[1717763795227,5.82939999,170.18,170.14,8.81627273]
[1717763795417,1.35025669,170.17,170.14,128.81627273]
[1717763796037,1.35025669,170.17,170.15,8.81627273]
[1717763796337,5.82939999,170.21,170.15,8.81627273]
[1717763796637,5.82939999,170.21,170.16,8.81627273]
[1717763796835,5.82939999,170.19,170.16,8.81627273]
[1717763797018,5.82939999,170.19,170.15,8.81627273]
[1717763797420,5.82939999,170.19,170.15,128.81627273]
[1717763797616,5.82939999,170.21,170.17,120.0]
[1717763798425,6.0374,170.27,170.17,120.0]
[1717763798426,5.82939999,170.23,170.19,120.0]
[1717763798626,1.35025669,170.22,170.19,137.59]
[1717763798938,1.35025669,170.22,170.21,120.0]
[1717763799358,1.35025669,170.22,170.21,137.59]
[1717763799644,5.82939999,170.25,170.2,26.40627273]
[1717763799947,5.82939999,170.23,170.19,128.81627273]
[1717763800130,5.82939999,170.23,170.19,8.81627273]
[1717763800451,5.82939999,170.23,170.18,8.81627273]
[1717763800835,6.80420067,170.25,170.2,120.0]
[1717763801143,6.80420067,170.25,170.21,120.0]
[1717763801342,6.80420067,170.25,170.19,8.81627273]
[1717763801820,5.82939999,170.23,170.19,26.40627273]
[1717763802021,6.80420067,170.25,170.19,146.40627273]
[1717763802323,6.80420067,170.25,170.19,8.81627273]
[1717763802844,6.80420067,170.25,170.19,26.40627273]
[1717763803039,0.97480068,170.25,170.2,120.0]
[1717763803218,0.97480068,170.25,170.19,8.81627273]
[1717763803634,6.80420067,170.25,170.19,8.81627273]
[1717763803840,5.82939999,170.23,170.18,8.81627273]
[1717763804167,0.97480068,170.25,170.18,8.81627273]
[1717763804441,0.97480068,170.25,170.19,8.81627273]
[1717763804950,0.97480068,170.25,170.19,146.40467479]
[1717763805327,0.97480068,170.25,170.19,137.59]
[1717763805537,0.97480068,170.25,170.21,137.59]
[1717763805749,5.82939999,170.22,170.18,146.40467479]
[1717763805947,5.82939999,170.22,170.18,26.40467479]
[1717763806263,5.82939999,170.22,170.19,8.81467479]
[1717763806652,5.82939999,170.22,170.2,120.0]
[1717763806845,5.82939999,170.22,170.19,17.59]
[1717763807871,5.82939999,170.22,170.21,120.0]
[1717763808769,5.82939999,170.22,170.21,146.40467479]
[1717763809244,5.82939999,170.22,170.21,137.59]
[1717763811442,5.82939999,170.22,170.21,179.1772]
[1717763811947,5.82939999,170.28,170.25,120.0]
[1717763812351,6.0374,170.33,170.25,120.0]
[1717763812352,5.82939999,170.3,170.25,120.0]
[1717763812555,6.80632047,170.3,170.25,137.59]
[1717763812760,6.80632047,170.3,170.27,120.0]
[1717763813164,6.80632047,170.3,170.27,137.59]
[1717763813464,5.82939999,170.3,170.29,120.0]
[1717763814269,5.82939999,170.3,170.29,137.59]
[1717763814490,6.0374,170.38,170.29,137.59]
[1717763814491,5.82939999,170.34,170.29,137.59]
[1717763814779,5.82939999,170.34,170.28,8.81371309]
[1717763814962,5.82939999,170.34,170.28,26.40371309]
[1717763815145,5.82939999,170.34,170.28,17.59]
[1717763815466,5.82939999,170.34,170.27,128.81371309]
[1717763815764,5.82939999,170.32,170.27,128.81371309]
[1717763816280,5.82939999,170.32,170.27,17.59]
[1717763816454,5.82939999,170.32,170.26,8.81371309]
[1717763816777,5.82939999,170.32,170.26,8.81187709]
[1717763816967,5.82939999,170.32,170.27,17.59]
[1717763817165,5.82939999,170.32,170.25,128.81187709]
[1717763817466,5.82939999,170.32,170.27,120.0]
[1717763818048,5.82939999,170.32,170.27,137.59]
[1717763819067,5.82939999,170.3,170.27,137.59]
[1717763819275,5.82939999,170.3,170.26,8.81168778]
[1717763819448,5.82939999,170.3,170.26,146.40168778]
[1717763819647,5.82939999,170.3,170.26,128.81168778]
[1717763820469,5.82939999,170.33,170.29,120.0]
[1717763820658,5.82939999,170.33,170.31,120.0]
[1717763820867,5.82939999,170.35,170.31,120.0]
[1717763821254,5.82939999,170.33,170.29,120.0]
[1717763821460,5.82939999,170.31,170.27,26.40168778]
[1717763821691,5.82939999,170.29,170.27,8.81168778]
[1717763821871,5.82939999,170.29,170.26,7.37812323]
[1717763822179,5.82939999,170.27,170.24,134.89650414]
[1717763822491,5.82939999,170.27,170.24,128.81168778]
[1717763822778,5.82939999,170.33,170.29,120.0]
[1717763822973,5.82939999,170.31,170.27,137.59]
[1717763823177,5.82939999,170.31,170.25,127.37812323]
[1717763823359,5.82939999,170.29,170.25,144.96812323]
[1717763823558,5.82939999,170.31,170.25,137.59]
[1717763823760,5.82939999,170.29,170.25,137.59]
[1717763823974,5.82939999,170.33,170.25,137.59]
[1717763824152,17.2992,170.42,170.25,120.0]
[1717763824153,5.82939999,170.29,170.25,120.0]
[1717763824353,5.82939999,170.29,170.25,7.37812323]
[1717763824669,5.82939999,170.27,170.23,146.40168778]
[1717763825769,0.95490068,170.32,170.23,8.81168778]
[1717763825770,5.82939999,170.25,170.23,8.81168778]
[1717763825980,5.82939999,170.29,170.23,120.0]
[1717763826162,5.82939999,170.29,170.25,120.0]
[1717763826368,5.82939999,170.27,170.23,128.81168778]
[1717763826684,5.82939999,170.25,170.22,8.81168778]
[1717763826881,5.82939999,170.23,170.2,8.81386669]
[1717763827380,5.82939999,170.25,170.19,8.81386669]
[1717763827556,5.82939999,170.22,170.18,8.81386669]
[1717763827757,5.82939999,170.22,170.2,120.0]
[1717763828167,5.82939999,170.25,170.22,120.0]
[1717763828359,5.82939999,170.28,170.22,120.0]
[1717763828769,5.82939999,170.28,170.2,153.78198992]
[1717763829084,5.82939999,170.21,170.19,26.40386669]
[1717763829274,5.82939999,170.21,170.19,8.81386669]
[1717763829675,5.82939999,170.19,170.18,8.81386669]
[1717763830783,5.82939999,170.19,170.15,8.81386669]
[1717763830964,5.82939999,170.16,170.15,8.81386669]
[1717763831358,5.82939999,170.16,170.14,8.81386669]
[1717763831583,11.86679999,170.16,170.14,8.81386669]
[1717763831787,11.86679999,170.16,170.13,8.81386669]
[1717763831788,5.82939999,170.14,170.13,8.81386669]
[1717763832092,5.82939999,170.14,170.12,8.81386669]
[1717763832461,6.0374,170.21,170.12,8.81386669]
[1717763832462,5.82939999,170.17,170.12,8.81386669]
[1717763832878,5.82939999,170.14,170.12,8.81386669]
[1717763833200,5.82939999,170.14,170.12,128.81386669]
[1717763833561,5.82939999,170.17,170.16,120.0]
[1717763833762,5.82939999,170.19,170.13,8.81386669]
[1717763833961,5.82939999,170.19,170.14,8.81386669]
[1717763834191,15.1281,170.23,170.14,8.81386669]
[1717763834192,5.82939999,170.15,170.14,8.81386669]
[1717763834683,5.82939999,170.19,170.14,128.81386669]
[1717763834878,5.82939999,170.19,170.16,120.0]
[1717763835193,5.82939999,170.22,170.18,120.0]
[1717763835365,5.82939999,170.2,170.18,120.0]
[1717763835974,5.82939999,170.2,170.17,8.81386669]
[1717763836203,5.82939999,170.2,170.16,8.81386669]
[1717763836510,5.82939999,170.18,170.16,8.81386669]
[1717763837007,5.82939999,170.18,170.17,8.81386669]
[1717763837187,5.82939999,170.18,170.16,8.81386669]
[1717763837704,9.64440068,170.32,170.03,16.4129]
[1717763837705,5.82939999,170.16,170.14,8.81386669]
[1717763838002,6.0374,170.15,170.14,8.81386669]
[1717763838204,5.82939999,170.13,170.12,8.81386669]
[1717763838606,5.82939999,170.08,170.07,5.864]
[1717763838805,5.82939999,170.08,170.05,120.0]
[1717763838979,6.0374,170.15,170.05,120.0]
[1717763838980,5.82939999,170.06,170.05,120.0]
[1717763839500,5.82939999,170.07,170.05,120.0]
[1717763839792,5.82939999,170.1,170.06,2.35124388]
[1717763839995,5.82939999,170.1,170.07,8.82020136]
[1717763840205,5.82939999,170.1,170.07,128.82020136]
[1717763840389,5.82939999,170.1,170.07,8.82020136]
[1717763840582,5.82939999,170.08,170.07,8.82020136]
[1717763840781,5.82939999,170.06,170.05,5.864]
[1717763840988,5.82939999,170.06,170.02,17.59]
[1717763841207,5.82939999,170.06,170.0,120.0]
[1717763841408,5.82939999,170.04,170.01,120.0]
[1717763841577,5.82939999,170.04,170.02,5.864]
[1717763841784,6.0374,170.15,169.99,120.0]
[1717763841785,5.82939999,170.02,169.99,120.0]
[1717763842194,5.82939999,170.02,169.97,0.8008647]
[1717763842402,5.82939999,170.0,169.97,0.8008647]
[1717763842701,5.82939999,169.98,169.97,0.8008647]
[1717763842902,26.99489999,169.98,169.97,0.8008647]
[1717763843927,5.82939999,169.91,169.9,1.0]
[1717763844924,26.19399999,169.91,169.9,1.0]
[1717763845297,5.82939999,169.91,169.9,1.0]
[1717763845499,26.19399999,169.91,169.9,1.0]
[1717763846225,11.86679999,169.91,169.9,1.0]
[1717763846399,26.19399999,169.91,169.9,1.0]
[1717763847597,120.0,170.07,169.85,0.3766868]
[1717763847598,5.82939999,169.86,169.85,0.3766868]
[1717763848520,11.86679999,169.86,169.85,0.3766868]
[1717763848709,25.19399999,169.86,169.85,0.3766868]
[1717763848901,27.37219999,169.86,169.85,0.3766868]
[1717763849095,27.37219999,169.86,169.83,0.15]
[1717763849096,5.82939999,169.84,169.83,0.15]
[1717763849296,8.00789999,169.84,169.83,0.15]
[1717763849801,28.00789999,169.84,169.83,0.15]
[1717763850001,28.00789999,169.84,169.8,0.8008647]
[1717763850002,5.82939999,169.81,169.8,0.8008647]
[1717763850299,5.82939999,169.74,169.63,120.83752904]
[1717763850501,5.82939999,169.72,169.63,0.83752904]
[1717763850707,5.82939999,169.72,169.71,2.1801]
[1717763850931,5.82939999,169.74,169.71,2.1801]
[1717763851228,5.82939999,169.74,169.72,2.18]
[1717763851925,5.82939999,169.74,169.73,2.1799]
[1717763852312,5.82939999,169.8,169.69,120.0]
[1717763852625,76.29761291,169.91,169.68,6.2387]
[1717763852626,5.82939999,169.86,169.84,2.1784]
[1717763852826,5.82939999,169.82,169.75,120.0]
[1717763853030,5.82939999,169.82,169.81,2.1789]
[1717763853321,5.82939999,169.82,169.79,2.179]
[1717763853526,5.82939999,169.8,169.7,6.98966051]
[1717763853698,5.82939999,169.81,169.69,120.0]
[1717763853909,5.82939999,169.81,169.8,2.179]
[1717763855104,5.82939999,169.83,169.82,2.1787]
[1717763856035,5.82939999,169.79,169.72,120.0]
[1717763856249,5.82939999,169.81,169.72,120.0]
[1717763856412,5.82939999,169.81,169.8,2.179]
[1717763857517,5.82939999,169.79,169.78,2.1791]
[1717763857712,5.82939999,169.79,169.7,143.33]
[1717763857713,5.82939999,169.79,169.7,23.33]
[1717763857913,5.82939999,169.79,169.78,2.1792]
[1717763858538,5.82939999,169.81,169.8,2.179]
[1717763858914,5.82939999,169.83,169.82,2.1787]
[1717763859321,5.82939999,169.82,169.81,2.1789]
[1717763859946,5.82939999,169.78,169.7,143.33]
[1717763860162,5.82939999,169.76,169.75,2.1796]
[1717763860517,5.82939999,169.75,169.74,2.1798]
[1717763861215,5.82939999,169.75,169.73,2.1799]
[1717763861430,5.82939999,169.69,169.63,7.07742904]
[1717763861630,5.82939999,169.69,169.68,2.1805]
[1717763862934,5.82939999,169.71,169.7,2.1803]
[1717763863119,5.82939999,169.69,169.63,0.83752904]
[1717763863324,5.82939999,169.69,169.68,2.1805]
[1717763863520,5.2365,169.69,169.68,2.1805]
[1717763863732,11.06589999,169.69,169.68,2.1805]
[1717763863945,5.2365,169.69,169.68,2.1805]
[1717763864127,5.82939999,169.69,169.68,2.1805]